bitfinex/quotes_SOLUSD_20250718
["timestamp","ask_amount","ask_price","bid_price","bid_amount"]
[1752818828117,29.42,182.79,182.77,5.47135744]
[1752818828512,29.42,182.79,182.77,6.15135744]
[1752818828715,29.42,182.79,182.78,6.1510581]
[1752818829415,0.38,182.84,182.78,5.4710581]
[1752818829603,8.61957619,182.87,182.81,8.61957619]
[1752818829922,29.38,182.85,182.82,0.68]
[1752818830246,29.38,182.84,182.82,0.68]
[1752818830726,29.38,182.84,182.83,0.68]
[1752818830927,29.38,182.84,182.83,6.14956188]
[1752818831428,29.38,182.86,182.83,6.14956188]
[1752818831605,29.38,182.87,182.84,9.29957619]
[1752818831800,29.38,182.87,182.85,0.68]
[1752818832021,29.38,182.87,182.86,0.68]
[1752818832621,29.38,182.87,182.86,9.29957619]
[1752818832829,29.38,182.89,182.87,5.4683655]
[1752818833027,29.38,182.89,182.87,14.76794169]
[1752818833208,29.38,182.89,182.88,9.29957619]
[1752818833535,29.44,182.91,182.88,0.68]
[1752818833911,29.44,182.91,182.89,9.29957619]
[1752818834112,0.06,182.91,182.89,8.61957619]
[1752818834314,0.06,182.91,182.9,0.68]
[1752818834906,0.06,182.91,182.9,6.14746856]
[1752818835325,0.06,182.91,182.9,5.46746856]
[1752818835631,0.06,182.91,182.84,13.67295802]
[1752818835826,0.06,182.91,182.85,10.82357619]
[1752818836126,0.06,182.91,182.87,8.61957619]
[1752818836327,0.06,182.91,182.88,8.61957619]
[1752818837019,0.06,182.91,182.89,5.46776751]
[1752818839131,0.06,182.91,182.86,22.29123757]
[1752818839132,0.06,182.91,182.85,2.204]
[1752818839308,29.4,182.9,182.85,2.204]
[1752818839509,29.4,182.9,182.86,6.14866455]
[1752818839736,29.4,182.9,182.87,0.68]
[1752818841139,8.61957619,182.88,182.81,6.14016027]
[1752818841355,38.05957619,182.87,182.81,6.14016027]
[1752818841633,8.61957619,182.82,182.8,0.03]
[1752818841931,38.01957619,182.81,182.8,0.03]
[1752818842936,8.61957619,182.81,182.8,0.03]
[1752818843128,29.4,182.81,182.8,0.03]
[1752818844340,38.01957619,182.81,182.8,0.03]
[1752818847929,29.4,182.81,182.8,0.03]
[1752818848142,6.1806,182.89,182.8,0.03]
[1752818848143,8.61957619,182.85,182.8,9.31957619]
[1752818848334,8.61957619,182.83,182.8,0.7]
[1752818848541,8.61957619,182.82,182.8,0.03]
[1752818848731,8.61957619,182.81,182.8,0.03]
[1752818849046,37.99957619,182.81,182.8,0.03]
[1752818850055,29.38,182.81,182.8,0.03]
[1752818851132,37.99957619,182.81,182.8,0.03]
[1752818851748,29.38,182.81,182.8,0.03]
[1752818852260,5.4683655,182.87,182.8,14.78987714]
[1752818852551,8.61957619,182.85,182.8,14.78987714]
[1752818852723,8.61957619,182.85,182.81,0.67]
[1752818853045,8.61957619,182.85,182.82,0.67]
[1752818853343,8.61957619,182.83,182.8,0.03]
[1752818853645,29.38,182.84,182.81,0.67]
[1752818853949,37.99957619,182.85,182.81,0.67]
[1752818854248,8.61957619,182.84,182.81,0.67]
[1752818854427,8.61957619,182.82,182.8,0.03]
[1752818854943,29.38,182.83,182.8,6.17035409]
[1752818855148,29.38,182.83,182.8,5.50035409]
[1752818855326,29.38,182.83,182.81,0.67]
[1752818855651,37.99957619,182.85,182.81,0.67]
[1752818856239,8.61957619,182.84,182.81,0.67]
[1752818856530,8.61957619,182.84,182.8,0.03]
[1752818856858,43.46861305,182.85,182.8,0.7]
[1752818857026,8.61957619,182.81,182.8,0.03]
[1752818858144,8.61957619,182.82,182.8,0.03]
[1752818858646,8.61957619,182.81,182.8,0.03]
[1752818859522,0.8857,212.11,182.81,6.1216]
[1752818859523,0.06,182.91,182.81,6.1216]
[1752818859730,14.08722934,182.9,182.84,1.5837]
[1752818859939,8.61957619,182.87,182.82,0.67]
[1752818860321,8.61957619,182.87,182.82,6.13958531]
[1752818860526,34.90789338,182.89,182.82,6.13958531]
[1752818860732,29.44,182.89,182.83,8.61957619]
[1752818860927,29.44,182.89,182.84,9.28957619]
[1752818861127,29.44,182.89,182.85,0.67]
[1752818861630,29.44,182.89,182.86,0.67]
[1752818862247,29.33,182.86,182.85,5.46896363]
[1752818863246,59.33,182.86,182.82,5.46986106]
[1752818863545,30.0,182.86,182.82,5.46986106]
[1752818863748,29.33,182.86,182.82,5.46986106]
[1752818863945,29.33,182.86,182.82,14.08943725]
[1752818864144,30.0,182.84,182.83,0.67]
[1752818864444,30.0,182.84,182.83,14.08913807]
[1752818864655,30.0,182.84,182.81,5.47016027]
[1752818865023,30.0,182.84,182.82,0.67]
[1752818865228,30.0,182.84,182.8,14.11998738]
[1752818865741,30.0,182.84,182.81,0.67]
[1752818866436,30.0,182.84,182.81,6.14008261]
[1752818866839,8.61957619,182.83,182.8,0.03]
[1752818867149,38.61957619,182.82,182.8,0.03]
[1752818867653,59.36,182.82,182.8,0.03]
[1752818872678,60.08,182.82,182.8,0.03]
[1752818872961,59.36,182.82,182.8,0.03]
[1752818873160,59.36,182.82,182.8,0.69]
[1752818873460,59.36,182.82,182.8,0.03]
[1752818873658,30.0,182.82,182.81,0.66]
[1752818874452,30.0,182.82,182.8,0.03]
[1752818874669,38.61957619,182.82,182.8,0.03]
[1752818874840,29.36,182.81,182.8,0.03]
[1752818875161,59.36,182.81,182.8,0.03]
[1752818875931,29.33,182.86,182.8,52.09426016]
[1752818876266,29.33,182.86,182.85,8.61957619]
[1752818876439,29.33,182.86,182.85,9.27957619]
[1752818876635,37.94957619,182.86,182.82,0.66]
[1752818876843,38.66957619,182.86,182.81,5.47016027]
[1752818877251,38.66957619,182.86,182.8,0.03]
[1752818877252,30.08,182.85,182.8,0.03]
[1752818877759,0.72,182.84,182.8,0.03]
[1752818877940,29.36,182.83,182.8,0.03]
[1752818878146,30.08,182.83,182.8,0.03]
[1752818878340,8.61957619,182.81,182.8,0.03]
[1752818878542,29.36,182.81,182.8,0.03]
[1752818878757,38.69957619,182.81,182.8,0.03]
[1752818879058,0.72,182.84,182.8,0.03]
[1752818879256,8.61957619,182.82,182.8,0.03]
[1752818879456,29.36,182.81,182.8,0.03]
[1752818880283,29.36,182.82,182.8,0.03]
[1752818880436,38.69957619,182.82,182.8,0.03]
[1752818880638,29.36,182.82,182.8,0.03]
[1752818881054,29.36,182.82,182.8,0.69]
[1752818881235,37.97957619,182.82,182.8,0.03]
[1752818882057,29.36,182.82,182.8,0.03]
[1752818882459,8.61957619,182.81,182.8,0.03]
[1752818882756,9.33957619,182.81,182.8,0.03]
[1752818884035,14.80973646,182.81,182.8,0.03]
[1752818884235,9.33957619,182.81,182.8,0.03]
[1752818884635,14.80973646,182.81,182.8,0.03]
[1752818885250,9.33957619,182.81,182.8,0.03]
[1752818885945,31.59442043,182.81,182.8,0.03]
[1752818886265,22.97484424,182.81,182.8,0.03]
[1752818886577,31.59442043,182.81,182.8,0.03]
[1752818887677,60.95442043,182.81,182.8,0.03]
[1752818887878,52.33484424,182.81,182.8,0.03]
[1752818888079,60.95442043,182.81,182.8,0.03]
[1752818888374,90.95442043,182.81,182.8,0.03]
[1752818889360,85.48426016,182.81,182.8,0.03]
[1752818889562,59.36,182.81,182.8,0.03]
[1752818890178,74.16973646,182.81,182.8,0.03]
[1752818890959,68.69957619,182.81,182.8,0.03]
[1752818891474,60.95442043,182.81,182.8,0.03]
[1752818892080,100.62982111,182.81,182.76,0.03]
[1752818892381,25.40426016,182.77,182.76,0.03]
[1752818892559,54.76426016,182.77,182.66,15.09187619]
[1752818892763,8.61957619,182.72,182.66,15.75187619]
[1752818892973,29.36,182.71,182.67,0.66]
[1752818893175,29.36,182.71,182.66,20.56639382]
[1752818893485,29.36,182.71,182.68,0.66]
[1752818893783,29.36,182.7,182.66,11.94681763]
[1752818893976,29.36,182.69,182.67,0.66]
[1752818894167,29.36,182.68,182.67,0.66]
[1752818895379,29.36,182.68,182.64,14.09454502]
[1752818895568,29.36,182.68,182.66,8.61957619]
[1752818895760,29.36,182.68,182.66,0.66]
[1752818895965,29.36,182.68,182.64,5.47496883]
[1752818896161,29.36,182.68,182.64,6.13496883]
[1752818896384,29.36,182.68,182.65,0.66]
[1752818896582,29.36,182.68,182.66,0.66]
[1752818897263,29.36,182.68,182.64,14.75454502]
[1752818897461,26.0,182.75,182.66,8.61957619]
[1752818897661,8.61957619,182.73,182.67,9.27957619]
[1752818897868,29.36,182.72,182.67,0.66]
[1752818898073,37.97957619,182.72,182.67,0.66]
[1752818898258,29.36,182.72,182.68,0.66]
[1752818899283,29.36,182.72,182.69,0.66]
[1752818899580,29.36,182.72,182.68,5.47405298]
[1752818899886,29.36,182.72,182.69,0.66]
[1752818900382,37.97957619,182.72,182.69,0.66]
[1752818900678,29.36,182.72,182.7,0.66]
[1752818900880,29.36,182.72,182.68,0.66]
[1752818901184,37.97957619,182.72,182.68,0.66]
[1752818901382,26.67,182.71,182.63,0.71]
[1752818901684,0.67,182.71,182.64,8.61957619]
[1752818901892,8.61957619,182.7,182.64,8.61957619]
[1752818902069,29.36,182.69,182.64,8.61957619]
[1752818902383,29.36,182.69,182.67,0.03]
[1752818903092,29.36,182.69,182.67,0.74]
[1752818904192,29.36,182.69,182.67,0.03]
[1752818904397,29.36,182.69,182.67,0.74]
[1752818905068,29.36,182.69,182.67,6.21427175]
[1752818905379,29.36,182.69,182.67,0.74]
[1752818906775,43.45337428,182.69,182.67,0.03]
[1752818906974,34.83379809,182.69,182.67,0.03]
[1752818907173,29.38,182.68,182.67,0.03]
[1752818907993,30.05,182.68,182.67,0.03]
[1752818908289,38.66957619,182.68,182.67,0.03]
[1752818908489,44.14362917,182.68,182.67,0.03]
[1752818909182,60.92831314,182.68,182.67,0.03]
[1752818911494,16.78468397,182.64,182.52,5.47885163]
[1752818911668,8.61957619,182.6,182.53,0.71]
[1752818911869,29.38,182.59,182.53,0.71]
[1752818912116,29.38,182.59,182.58,8.61957619]
[1752818912298,29.38,182.59,182.58,0.71]
[1752818912606,29.38,182.59,182.58,14.80662734]
[1752818913370,29.38,182.61,182.58,6.18705115]
[1752818913572,29.38,182.61,182.59,9.32957619]
[1752818913770,29.38,182.61,182.6,0.71]
[1752818914194,29.38,182.61,182.6,9.32957619]
[1752818914377,29.38,182.61,182.6,0.71]
[1752818914572,29.38,182.61,182.58,9.32957619]
[1752818914774,29.38,182.61,182.59,0.71]
[1752818914999,29.38,182.61,182.6,8.61957619]
[1752818915174,29.38,182.61,182.59,8.61957619]
[1752818915379,29.38,182.61,182.57,0.71]
[1752818915585,8.61957619,182.6,182.57,0.71]
[1752818915890,29.38,182.61,182.55,8.61957619]
[1752818916097,8.61957619,182.6,182.52,5.47885163]
[1752818916280,8.61957619,182.6,182.55,0.71]
[1752818916483,8.61957619,182.6,182.52,5.47885163]
[1752818916484,8.61957619,182.6,182.56,0.71]
[1752818916692,29.56,182.6,182.58,8.61957619]
[1752818917000,29.56,182.6,182.59,0.71]
[1752818917203,29.56,182.6,182.56,0.71]
[1752818917508,34.9585749,182.6,182.54,6.1085749]
[1752818917681,35.6285749,182.6,182.54,6.1085749]
[1752818918201,34.9585749,182.6,182.54,0.71]
[1752818918382,29.56,182.6,182.54,6.1085749]
[1752818918584,34.9585749,182.6,182.55,0.71]
[1752818918786,29.56,182.6,182.55,0.71]
[1752818919000,29.56,182.59,182.57,5.3985749]
[1752818919303,29.56,182.59,182.58,0.71]
[1752818920196,29.56,182.61,182.58,6.1085749]
[1752818920409,29.56,182.61,182.58,0.71]
[1752818920775,29.56,182.61,182.59,0.71]
[1752818922101,29.56,182.61,182.53,19.17493014]
[1752818922102,29.56,182.61,182.58,5.3985749]
[1752818922307,29.52,182.63,182.6,6.1085749]
[1752818922479,29.52,182.63,182.53,19.17493014]
[1752818922480,34.9185749,182.63,182.58,0.71]
[1752818922806,29.52,182.63,182.59,0.71]
[1752818923001,29.52,182.63,182.6,0.71]
[1752818923189,29.52,182.63,182.61,0.71]
[1752818923595,0.67,182.69,182.62,0.71]
[1752818923779,34.9385749,182.68,182.62,0.71]
[1752818923978,34.9385749,182.68,182.62,6.1085749]
[1752818924402,29.56,182.67,182.62,6.1085749]
[1752818924580,29.56,182.67,182.62,10.87437913]
[1752818924776,29.56,182.67,182.63,0.71]
[1752818925007,5.3985749,182.66,182.61,5.3985749]
[1752818925305,5.3985749,182.62,182.58,0.03]
[1752818925612,29.56,182.61,182.58,0.03]
[1752818925903,34.9585749,182.61,182.58,0.03]
[1752818926111,29.56,182.61,182.58,0.03]
[1752818926482,29.54,182.6,182.58,0.03]
[1752818926877,5.4753076,182.64,182.58,5.4285749]
[1752818927082,29.54,182.63,182.59,0.71]
[1752818927298,29.54,182.63,182.59,5.3985749]
[1752818927497,29.54,182.63,182.6,0.71]
[1752818927779,29.54,182.63,182.6,6.1085749]
[1752818927985,29.54,182.62,182.6,6.1085749]
[1752818928185,11.54348103,182.66,182.6,6.1085749]
[1752818928186,29.54,182.61,182.6,0.71]
[1752818928481,29.54,182.61,182.59,5.3985749]
[1752818928678,29.54,182.61,182.6,0.71]
[1752818929311,10.87356436,182.65,182.6,0.71]
[1752818929600,29.54,182.64,182.6,0.71]
[1752818929978,0.06,182.67,182.61,0.71]
[1752818930182,29.58,182.67,182.64,5.3985749]
[1752818930688,29.58,182.67,182.65,0.71]
[1752818931010,29.58,182.67,182.64,10.87375033]
[1752818931011,29.58,182.67,182.62,0.71]
[1752818931186,29.58,182.67,182.64,5.3985749]
[1752818931386,29.58,182.67,182.65,0.72]
[1752818931802,29.58,182.67,182.66,6.1185749]
[1752818932011,59.58,182.67,182.66,6.1185749]
[1752818932306,59.58,182.67,182.66,0.72]
[1752818932307,0.06,182.67,182.66,0.72]
[1752818932478,0.06,182.67,182.66,6.1185749]
[1752818932679,0.06,182.67,182.66,11.59322725]
[1752818934307,0.06,182.67,182.66,6.19465235]
[1752818934612,0.06,182.67,182.66,11.59322725]
[1752818934986,0.06,182.67,182.66,14.82157759]
[1752818935513,0.06,182.67,182.66,6.19465235]
[1752818935723,0.06,182.67,182.66,14.82157759]
[1752818937006,0.06,182.75,182.66,28.50820848]
[1752818937193,0.06,182.75,182.74,8.62692524]
[1752818937591,0.06,182.75,182.74,9.34692524]
[1752818938710,0.06,182.75,182.74,14.8191809]
[1752818939513,0.06,182.75,182.74,6.19225566]
[1752818939713,0.06,182.75,182.74,14.8191809]
[1752818940619,0.06,182.75,182.74,8.62692524]
[1752818940826,9.37692524,182.75,182.7,8.62692524]
[1752818941125,8.62692524,182.71,182.65,2.2887]
[1752818941297,8.62692524,182.68,182.62,8.62692524]
[1752818941499,8.62692524,182.67,182.61,0.72]
[1752818941693,38.06692524,182.66,182.6,10.14422524]
[1752818941894,9.31692524,182.65,182.58,0.03]
[1752818942099,0.69,182.65,182.6,8.62692524]
[1752818942703,8.62692524,182.62,182.58,0.03]
[1752818942900,30.11,182.61,182.58,0.03]
[1752818943125,8.62692524,182.6,182.58,0.03]
[1752818943311,9.31692524,182.6,182.58,0.03]
[1752818943500,0.69,182.6,182.58,0.03]
[1752818944012,29.42,182.59,182.58,0.03]
[1752818944916,29.42,182.59,182.58,0.75]
[1752818945118,0.69,182.66,182.58,0.75]
[1752818945299,38.02692524,182.65,182.59,8.62692524]
[1752818945628,6.16396014,182.69,182.62,8.62692524]
[1752818945810,29.4,182.68,182.63,8.62692524]
[1752818946009,38.71692524,182.68,182.62,9.34692524]
[1752818946211,38.71692524,182.68,182.62,0.72]
[1752818946406,38.71692524,182.68,182.62,9.34692524]
[1752818946601,38.71692524,182.68,182.62,6.19568941]
[1752818946801,44.19105337,182.68,182.62,9.34692524]
[1752818947008,30.09,182.68,182.62,14.82269795]
[1752818947208,38.71692524,182.68,182.63,8.62692524]
[1752818947823,38.71692524,182.68,182.63,9.34692524]
[1752818948715,38.71692524,182.68,182.63,8.62692524]
[1752818948920,8.62692524,182.65,182.6,1.5707]
[1752818949230,29.38,182.64,182.6,10.19762524]
[1752818949398,29.38,182.64,182.6,10.91762524]
[1752818949602,29.38,182.64,182.61,8.62692524]
[1752818950024,29.38,182.64,182.6,2.2907]
[1752818950232,30.07,182.64,182.59,8.62692524]
[1752818950608,0.69,182.63,182.58,8.65692524]
[1752818950935,9.31692524,182.63,182.58,0.03]
[1752818951118,0.69,182.62,182.58,0.03]
[1752818951426,0.69,182.63,182.58,9.37692524]
[1752818951805,38.00692524,182.64,182.58,8.65692524]
[1752818952130,0.69,182.62,182.58,0.03]
[1752818952318,8.62692524,182.62,182.58,0.03]
[1752818952518,29.48,182.61,182.59,8.62692524]
[1752818952834,29.48,182.61,182.59,9.34692524]
[1752818953005,29.48,182.61,182.59,8.62692524]
[1752818953717,0.69,182.67,182.6,9.34692524]
[1752818953916,29.46,182.66,182.6,0.72]
[1752818954311,38.08692524,182.66,182.6,8.62692524]
[1752818954722,9.31692524,182.65,182.58,6.22701705]
[1752818954903,14.79239923,182.64,182.58,0.03]
[1752818955414,14.79239923,182.64,182.58,8.65692524]
[1752818956228,8.62692524,182.6,182.58,0.03]
[1752818956431,29.78,182.59,182.58,0.03]
[1752818956939,29.78,182.59,182.58,8.65692524]
[1752818957110,29.94,182.62,182.58,14.85397639]
[1752818957306,29.94,182.62,182.59,0.72]
[1752818957622,29.94,182.62,182.6,9.34692524]
[1752818958014,29.94,182.62,182.6,6.19638585]
[1752818958216,29.94,182.62,182.6,0.72]
[1752818958929,29.94,182.62,182.58,8.65692524]
[1752818959232,30.63,182.62,182.58,8.65692524]
[1752818959440,29.94,182.62,182.58,0.03]
[1752818960016,0.69,182.61,182.58,0.03]
[1752818960635,44.04281573,182.62,182.58,0.03]
[1752818960835,29.94,182.62,182.58,0.03]
[1752818961019,8.62692524,182.64,182.59,0.72]
[1752818961218,29.98,182.62,182.58,0.03]
[1752818961637,0.69,182.61,182.58,0.03]
[1752818962026,9.31692524,182.61,182.58,0.03]
[1752818962335,0.69,182.6,182.58,0.03]
[1752818962529,0.69,182.61,182.58,0.03]
[1752818962727,9.31692524,182.61,182.58,0.03]
[1752818962934,8.62692524,182.6,182.58,0.03]
[1752818963434,0.69,182.6,182.58,0.03]
[1752818963640,0.69,182.59,182.58,0.03]
[1752818963838,8.4475,182.59,182.58,0.03]
[1752818964014,0.69,182.59,182.58,0.03]
[1752818964219,14.79367643,182.59,182.58,0.03]
[1752818964930,0.69,182.59,182.58,0.03]
[1752818965134,9.31692524,182.59,182.58,0.03]
[1752818965362,30.66,182.6,182.58,0.03]
[1752818965715,8.62692524,182.59,182.58,0.03]
[1752818965914,30.66,182.6,182.58,0.03]
[1752818965915,39.28692524,182.6,182.58,0.03]
[1752818966233,5.47465235,182.66,182.59,8.62692524]
[1752818966442,39.26692524,182.65,182.59,9.30692524]
[1752818966630,30.64,182.65,182.58,8.65692524]
[1752818966829,30.64,182.65,182.58,0.03]
[1752818967034,8.62692524,182.62,182.58,0.03]
[1752818967239,30.62,182.61,182.58,0.03]
[1752818967723,31.14,182.61,182.58,0.03]
[1752818968333,36.61615662,182.61,182.58,0.03]
[1752818968533,31.14,182.61,182.58,0.03]
[1752818968737,30.62,182.61,182.58,0.03]
[1752818969238,36.09624942,182.61,182.58,0.03]
[1752818970137,30.62,182.61,182.58,0.03]
[1752818970320,30.62,182.61,182.59,8.62692524]
[1752818970517,30.62,182.61,182.59,9.30692524]
[1752818970734,30.62,182.61,182.58,0.03]
[1752818970735,30.62,182.61,182.6,9.30692524]
[1752818971051,30.54,182.64,182.6,9.30692524]
[1752818971258,30.54,182.64,182.63,8.62692524]
[1752818971547,30.54,182.64,182.6,2.224]
[1752818971756,30.54,182.64,182.62,8.62692524]
[1752818971921,30.54,182.64,182.63,8.62692524]
[1752818972337,30.54,182.64,182.63,9.30692524]
[1752818972721,0.06,182.67,182.63,9.30692524]
[1752818972943,30.56,182.67,182.66,8.62692524]
[1752818973333,30.56,182.67,182.64,9.30692524]
[1752818973523,30.56,182.67,182.65,8.62692524]
[1752818974547,30.56,182.67,182.64,6.15509878]
[1752818974848,30.56,182.67,182.65,8.62692524]
[1752818975024,30.56,182.67,182.64,6.15509878]
[1752818975347,30.56,182.67,182.66,8.62692524]
[1752818975554,30.56,182.67,182.65,9.30692524]
[1752818975730,30.56,182.67,182.65,8.62692524]
[1752818976648,30.56,182.67,182.65,14.10186824]
[1752818977146,30.56,182.67,182.66,8.62692524]
[1752818977655,30.56,182.67,182.65,5.474943]
[1752818977954,30.56,182.67,182.66,8.62692524]
[1752818978140,0.06,182.67,182.66,9.30692524]
[1752818978450,0.06,182.67,182.66,14.78157759]
[1752818979952,1e-08,182.67,182.66,14.78157759]
[1752818980251,1e-08,182.67,182.66,19.19888478]
[1752818980450,1e-08,182.67,182.66,32.15465235]
[1752818980633,1e-08,182.67,182.66,40.78157759]
[1752818982732,1e-08,182.67,182.66,32.15465235]
[1752818982937,1e-08,182.67,182.66,14.78157759]
[1752818983345,1e-08,182.67,182.66,14.10157759]
[1752818983938,1e-08,182.67,182.66,5.47465235]
[1752818984149,1e-08,182.67,182.66,14.10157759]
[1752818984871,1e-08,182.67,182.62,26.0]
[1752818985050,0.69000001,182.67,182.62,5.47580884]
[1752818985235,8.62692525,182.67,182.62,5.47580884]
[1752818985435,0.69,182.66,182.62,14.10273408]
[1752818985637,0.69,182.66,182.62,8.62692524]
[1752818985864,8.62692525,182.67,182.61,8.62692524]
[1752818986039,8.62692525,182.67,182.6,5.47643383]
[1752818986040,0.69,182.65,182.6,5.47643383]
[1752818986456,0.69,182.65,182.62,8.62692524]
[1752818986668,0.69000001,182.67,182.62,8.62692524]
[1752818986874,0.69,182.66,182.61,14.10282126]
[1752818987243,0.69,182.65,182.61,5.47589602]
[1752818987556,0.69,182.65,182.61,14.10282126]
[1752818987960,0.69000001,182.67,182.62,8.62692524]
[1752818988156,9.31692524,182.66,182.6,14.10334257]
[1752818988360,8.62692524,182.66,182.58,0.03]
[1752818988574,8.62692524,182.64,182.58,8.65692524]
[1752818988775,0.69,182.63,182.58,8.65692524]
[1752818988950,39.30692524,182.64,182.58,8.65692524]
[1752818989154,0.69,182.62,182.58,8.65692524]
[1752818989866,0.69,182.62,182.58,14.13396677]
[1752818990070,0.69,182.62,182.58,5.50704153]
[1752818990242,0.69,182.62,182.58,14.13396677]
[1752818990436,39.30692524,182.64,182.58,14.13396677]
[1752818990764,39.99692524,182.64,182.58,14.13396677]
[1752818991063,9.31692524,182.63,182.58,0.03]
[1752818991554,0.69,182.62,182.58,0.03]
[1752818991957,36.15529051,182.64,182.59,8.62692524]
[1752818991958,30.68,182.64,182.59,8.62692524]
[1752818992157,31.37,182.64,182.59,8.62692524]
[1752818992356,31.37,182.64,182.59,9.34692524]
[1752818992758,30.68,182.64,182.6,9.34692524]
[1752818993649,30.68,182.64,182.61,8.62692524]
[1752818993856,30.68,182.64,182.61,9.34692524]
[1752818994055,30.68,182.64,182.62,8.62692524]
[1752818994673,30.68,182.64,182.63,8.62692524]
[1752818994863,1e-08,182.67,182.63,8.62692524]
[1752818995058,1e-08,182.67,182.64,8.62692524]
[1752818995557,1e-08,182.67,182.64,9.34692524]
[1752818995870,1e-08,182.67,182.66,8.62692524]
[1752818996379,1e-08,182.67,182.66,9.34692524]
[1752818998479,1e-08,182.67,182.66,14.82157759]
[1752819000897,1e-08,182.67,182.66,6.19465235]
[1752819001183,1e-08,182.67,182.64,8.62692524]
[1752819001958,0.69,182.66,182.62,5.47576337]
[1752819002281,0.69,182.65,182.61,14.10303243]
[1752819002476,44.5814721,182.67,182.62,8.62692524]
[1752819002477,36.64454686,182.67,182.62,8.62692524]
[1752819002669,31.17000001,182.67,182.63,8.62692524]
[1752819003069,31.17000001,182.67,182.64,8.62692524]
[1752819003272,30.48000001,182.67,182.64,8.62692524]
[1752819003581,31.17000001,182.67,182.63,8.62692524]
[1752819003766,0.69,182.66,182.63,8.62692524]
[1752819004177,0.69,182.66,182.61,5.47610719]
[1752819004357,0.69,182.66,182.62,8.62692524]
[1752819005184,0.69,182.65,182.58,0.03]
[1752819005484,8.62692524,182.61,182.58,0.03]
[1752819005683,0.69,182.6,182.58,0.03]
[1752819006062,30.4,182.62,182.58,0.03]
[1752819006063,9.31692524,182.59,182.58,0.03]
[1752819006763,0.69,182.59,182.58,0.03]
[1752819007274,6.16675119,182.59,182.58,0.03]
[1752819007578,14.79367643,182.59,182.58,0.03]
[1752819008763,9.31692524,182.59,182.58,0.03]
[1752819008964,14.79367643,182.59,182.58,0.03]
[1752819009283,0.69,182.61,182.58,0.03]
[1752819009478,30.4,182.62,182.58,9.37692524]
[1752819009986,30.4,182.62,182.59,8.62692524]
[1752819010777,30.4,182.62,182.59,14.10356158]
[1752819012264,30.4,182.62,182.59,6.19663634]
[1752819012464,30.4,182.62,182.6,8.62692524]
[1752819012975,30.4,182.62,182.59,14.82356158]
[1752819013369,30.4,182.62,182.59,6.19663634]
[1752819013576,30.4,182.62,182.58,0.03]
[1752819013775,0.69,182.61,182.58,0.03]
[1752819014677,30.4,182.62,182.58,0.03]
[1752819014989,0.69,182.61,182.58,0.03]
[1752819015168,14.79309779,182.61,182.58,0.03]
[1752819015372,8.62692524,182.6,182.58,0.03]
[1752819015593,9.31692524,182.6,182.58,0.03]
[1752819015769,0.69,182.59,182.58,0.03]
[1752819016169,36.56586973,182.62,182.58,0.03]
[1752819016469,45.19279497,182.62,182.58,0.03]
[1752819016669,0.69,182.61,182.58,0.03]
[1752819017106,0.69,182.6,182.58,0.03]
[1752819017671,8.62692524,182.61,182.58,0.03]
[1752819017864,9.31692524,182.59,182.58,0.03]
[1752819018168,0.69,182.59,182.58,0.03]